[Event "Chess.com Isle of Man Masters"]
[Site "Villa Marina, Douglas, Isle of Man, United Kingdom"]
[Date "2018.10.22"]
[Round "3.30"]
[White "Nabaty, Tamir"]
[Black "Soumya, Swaminathan"]
[Result "1/2-1/2"]
[TimeControl "40 moves in 100 minutes, f.b. 20 moves in 50 minutes f.b. 15 minutes with a 30 second increment from move 0"]
[WhiteElo "2692"]
[BlackElo "2423"]

1. e4 {[%clk 01:40:57]} {[%emt 00:00:01]} c5 {[%clk 01:38:20]} {[%emt
00:02:41]} 2. Nf3 {[%clk 01:41:17]} {[%emt 00:00:10]} Nc6 {[%clk 01:37:05]}
{[%emt 00:01:45]} 3. d4 {[%clk 01:41:39]} {[%emt 00:00:08]} cxd4 {[%clk
01:37:31]} {[%emt 00:00:05]} 4. Nxd4 {[%clk 01:42:04]} {[%emt 00:00:05]} Nf6
{[%clk 01:37:36]} {[%emt 00:00:26]} 5. Nc3 {[%clk 01:42:25]} {[%emt 00:00:09]}
d6 {[%clk 01:38:00]} {[%emt 00:00:06]} 6. Bg5 {[%clk 01:42:48]} {[%emt
00:00:06]} e6 {[%clk 01:38:24]} {[%emt 00:00:07]} 7. Qd3 {[%clk 01:42:56]}
{[%emt 00:00:22]} Qb6 {[%clk 01:29:12]} {[%emt 00:09:42]} 8. O-O-O {[%clk
01:34:43]} {[%emt 00:08:42]} Qxd4 {[%clk 01:26:33]} {[%emt 00:03:09]} 9. Qxd4
{[%clk 01:35:06]} {[%emt 00:00:07]} Nxd4 {[%clk 01:26:57]} {[%emt 00:00:06]} 10.
Rxd4 {[%clk 01:35:30]} {[%emt 00:00:06]} a6 {[%clk 01:25:11]} {[%emt 00:02:17]}
11. Be2 {[%clk 01:33:19]} {[%emt 00:02:40]} Bd7 {[%clk 01:15:04]} {[%emt
00:10:37]} 12. f4 {[%clk 01:26:10]} {[%emt 00:07:39]} Bc6 {[%clk 01:02:38]}
{[%emt 00:12:56]} 13. Rhd1 {[%clk 01:23:44]} {[%emt 00:02:55]} Be7 {[%clk
00:58:04]} {[%emt 00:05:04]} 14. Bf3 {[%clk 01:17:26]} {[%emt 00:06:44]} h6
{[%clk 00:56:33]} {[%emt 00:02:06]} 15. Bxf6 {[%clk 01:08:29]} {[%emt
00:09:27]} gxf6 {[%clk 00:56:32]} {[%emt 00:00:31]} 16. f5 {[%clk 01:07:21]}
{[%emt 00:01:38]} h5 {[%clk 00:45:55]} {[%emt 00:11:07]} 17. h4 {[%clk
01:07:10]} {[%emt 00:00:39]} O-O-O {[%clk 00:45:44]} {[%emt 00:00:43]} 18. Ne2
{[%clk 01:05:52]} {[%emt 00:01:47]} Kb8 {[%clk 00:38:47]} {[%emt 00:07:27]} 19.
R4d3 {[%clk 00:49:43]} {[%emt 00:16:39]} Bb5 {[%clk 00:36:04]} {[%emt
00:03:13]} 20. Rc3 {[%clk 00:48:41]} {[%emt 00:01:32]} Bxe2 {[%clk 00:21:21]}
{[%emt 00:15:13]} 21. Bxe2 {[%clk 00:49:02]} {[%emt 00:00:09]} Rdg8 {[%clk
00:18:59]} {[%emt 00:02:52]} 22. g3 {[%clk 00:46:24]} {[%emt 00:03:08]} Rc8
{[%clk 00:19:05]} {[%emt 00:00:24]} 23. Rb3 {[%clk 00:39:37]} {[%emt 00:07:17]}
Rc6 {[%clk 00:16:09]} {[%emt 00:03:26]} 24. Rd4 {[%clk 00:39:53]} {[%emt
00:00:14]} Ka8 {[%clk 00:11:09]} {[%emt 00:05:29]} 25. Rc4 {[%clk 00:26:08]}
{[%emt 00:14:15]} Rc5 {[%clk 00:07:57]} {[%emt 00:03:43]} 26. Rxc5 {[%clk
00:17:52]} {[%emt 00:08:46]} dxc5 {[%clk 00:08:25]} {[%emt 00:00:02]} 27. Rd3
{[%clk 00:17:50]} {[%emt 00:00:32]} Rd8 {[%clk 00:08:12]} {[%emt 00:00:43]} 28.
fxe6 {[%clk 00:15:02]} {[%emt 00:03:18]} Rxd3 {[%clk 00:05:23]} {[%emt
00:03:18]} 29. cxd3 {[%clk 00:15:26]} {[%emt 00:00:06]} fxe6 {[%clk 00:05:49]}
{[%emt 00:00:04]} 30. e5 {[%clk 00:14:58]} {[%emt 00:00:58]} fxe5 {[%clk
00:06:10]} {[%emt 00:00:09]} 31. Bxh5 {[%clk 00:05:37]} {[%emt 00:09:51]} e4
{[%clk 00:05:58]} {[%emt 00:00:42]} 32. dxe4 {[%clk 00:05:32]} {[%emt
00:00:34]} Bd6 {[%clk 00:06:25]} {[%emt 00:00:04]} 33. g4 {[%clk 00:05:09]}
{[%emt 00:00:54]} Bg3 {[%clk 00:06:49]} {[%emt 00:00:04]} 34. g5 {[%clk
00:05:35]} {[%emt 00:00:04]} Bxh4 {[%clk 00:06:53]} {[%emt 00:00:25]} 35. g6
{[%clk 00:06:00]} {[%emt 00:00:06]} Bf6 {[%clk 00:07:08]} {[%emt 00:00:14]} 36.
a4 {[%clk 00:05:57]} {[%emt 00:00:34]} a5 {[%clk 00:06:11]} {[%emt 00:01:26]}
37. Bg4 {[%clk 00:05:57]} {[%emt 00:00:31]} e5 {[%clk 00:05:22]} {[%emt
00:01:19]} 38. Kc2 {[%clk 00:05:22]} {[%emt 00:01:05]} b6 {[%clk 00:05:00]}
{[%emt 00:00:52]} 39. Kd3 {[%clk 00:04:35]} {[%emt 00:01:17]} Kb7 {[%clk
00:05:27]} {[%emt 00:00:03]} 40. Kc4 {[%clk 00:04:15]} {[%emt 00:00:51]} Kc6
{[%clk 00:05:54]} {[%emt 00:00:02]} 41. Be6 {[%clk 00:04:10]} {[%emt 00:00:35]}
Bg7 {[%clk 00:05:30]} {[%emt 00:00:53]} 42. Bf7 {[%clk 00:02:07]} {[%emt
00:02:34]} Bf6 {[%clk 00:05:36]} {[%emt 00:00:24]} 43. Be8+ {[%clk 00:44:04]}
{[%emt 00:08:34]} Kd6 {[%clk 00:54:51]} {[%emt 00:01:15]} 44. b3 {[%clk
00:43:52]} {[%emt 00:00:42]} Bg7 {[%clk 00:55:15]} {[%emt 00:00:06]} 45. Kd3
{[%clk 00:41:21]} {[%emt 00:03:01]} Bf6 {[%clk 00:55:31]} {[%emt 00:00:13]} 46.
Bf7 {[%clk 00:41:40]} {[%emt 00:00:12]} Bg7 {[%clk 00:55:52]} {[%emt 00:00:08]}
47. Kc4 {[%clk 00:41:49]} {[%emt 00:00:21]} 1/2-1/2

[Event "Chess.com Isle of Man Masters"]
[Site "Villa Marina, Douglas, Isle of Man, United Kingdom"]
[Date "2018.10.22"]
[Round "3.31"]
[White "Howell, David W L"]
[Black "Gaponenko, Inna"]
[Result "1-0"]
[TimeControl "40 moves in 100 minutes, f.b. 20 moves in 50 minutes f.b. 15 minutes with a 30 second increment from move 0"]
[WhiteElo "2689"]
[BlackElo "2409"]

1. Nf3 {[%clk 01:30:12]} {[%emt 00:10:31]} Nf6 {[%clk 01:38:13]} {[%emt
00:03:03]} 2. c4 {[%clk 01:30:21]} {[%emt 00:00:20]} g6 {[%clk 01:36:40]}
{[%emt 00:02:03]} 3. d4 {[%clk 01:25:39]} {[%emt 00:05:12]} Bg7 {[%clk
01:37:05]} {[%emt 00:00:05]} 4. g3 {[%clk 01:26:04]} {[%emt 00:00:05]} O-O
{[%clk 01:33:05]} {[%emt 00:04:30]} 5. Bg2 {[%clk 01:25:52]} {[%emt 00:00:42]}
d6 {[%clk 01:33:29]} {[%emt 00:00:07]} 6. O-O {[%clk 01:25:58]} {[%emt
00:00:24]} Nc6 {[%clk 01:33:55]} {[%emt 00:00:04]} 7. Nc3 {[%clk 01:25:41]}
{[%emt 00:00:46]} e5 {[%clk 01:34:05]} {[%emt 00:00:21]} 8. dxe5 {[%clk
01:25:32]} {[%emt 00:00:40]} dxe5 {[%clk 01:34:30]} {[%emt 00:00:04]} 9. Bg5
{[%clk 01:25:53]} {[%emt 00:00:09]} Be6 {[%clk 01:34:48]} {[%emt 00:00:12]} 10.
Nd2 {[%clk 01:18:48]} {[%emt 00:07:34]} Qb8 {[%clk 01:27:39]} {[%emt 00:07:39]}
11. Nd5 {[%clk 01:11:43]} {[%emt 00:07:35]} Bxd5 {[%clk 01:19:40]} {[%emt
00:08:29]} 12. cxd5 {[%clk 01:11:16]} {[%emt 00:00:56]} Ne7 {[%clk 01:20:01]}
{[%emt 00:00:10]} 13. Qb3 {[%clk 00:55:59]} {[%emt 00:15:48]} c6 {[%clk
00:59:58]} {[%emt 00:20:33]} 14. dxc6 {[%clk 00:44:40]} {[%emt 00:11:49]} Nxc6
{[%clk 00:56:52]} {[%emt 00:03:36]} 15. e3 {[%clk 00:45:03]} {[%emt 00:00:07]}
Nd7 {[%clk 00:43:13]} {[%emt 00:14:10]} 16. Rac1 {[%clk 00:43:04]} {[%emt
00:02:29]} a5 {[%clk 00:25:53]} {[%emt 00:17:50]} 17. Rfd1 {[%clk 00:35:28]}
{[%emt 00:08:05]} a4 {[%clk 00:12:20]} {[%emt 00:14:04]} 18. Qd3 {[%clk
00:35:27]} {[%emt 00:00:30]} Nb6 {[%clk 00:12:41]} {[%emt 00:00:10]} 19. g4
{[%clk 00:28:07]} {[%emt 00:07:50]} Ra5 {[%clk 00:05:13]} {[%emt 00:07:58]} 20.
Ne4 {[%clk 00:19:40]} {[%emt 00:08:56]} Rd5 {[%clk 00:02:37]} {[%emt 00:03:07]}
21. Qe2 {[%clk 00:20:02]} {[%emt 00:00:07]} Rxd1+ {[%clk 00:03:03]} {[%emt
00:00:05]} 22. Rxd1 {[%clk 00:20:18]} {[%emt 00:00:14]} f6 {[%clk 00:00:56]}
{[%emt 00:02:38]} 23. Bh4 {[%clk 00:20:16]} {[%emt 00:00:30]} g5 {[%clk
00:01:13]} {[%emt 00:00:15]} 24. Bg3 {[%clk 00:14:11]} {[%emt 00:06:34]} Rd8
{[%clk 00:01:42]} {[%emt 00:00:01]} 25. h4 {[%clk 00:13:39]} {[%emt 00:01:02]}
h6 {[%clk 00:00:39]} {[%emt 00:01:34]} 26. Rc1 {[%clk 00:13:21]} {[%emt
00:00:48]} Qc7 {[%clk 00:00:43]} {[%emt 00:00:26]} 27. Nc5 {[%clk 00:07:26]}
{[%emt 00:06:25]} Rd6 {[%clk 00:01:07]} {[%emt 00:00:05]} 28. Qb5 {[%clk
00:06:29]} {[%emt 00:01:27]} Nd8 {[%clk 00:00:37]} {[%emt 00:01:01]} 29. Kh2
{[%clk 00:02:49]} {[%emt 00:04:10]} Rd2 {[%clk 00:00:32]} {[%emt 00:00:35]} 30.
h5 {[%clk 00:01:09]} {[%emt 00:02:09]} Bf8 {[%clk 00:00:44]} {[%emt 00:00:19]}
31. Nb3 {[%clk 00:00:55]} {[%emt 00:00:44]} Qd7 {[%clk 00:00:38]} {[%emt
00:00:36]} 32. Qxb6 {[%clk 00:01:09]} {[%emt 00:00:17]} axb3 {[%clk 00:01:04]}
{[%emt 00:00:03]} 33. Qxb3+ {[%clk 00:01:15]} {[%emt 00:00:24]} Kg7 {[%clk
00:01:11]} {[%emt 00:00:23]} 34. Bf3 {[%clk 00:00:58]} {[%emt 00:00:46]} Ne6
{[%clk 00:00:48]} {[%emt 00:00:54]} 35. Qc3 {[%clk 00:00:55]} {[%emt 00:00:33]}
Nc5 {[%clk 00:00:35]} 36. b4 {[%clk 00:00:52]} {[%emt 00:01:16]} Na4 {[%clk
00:00:31]} {[%emt 00:00:34]} 37. Qc4 {[%clk 00:00:53]} {[%emt 00:00:29]} Nb2
{[%clk 00:00:34]} {[%emt 00:00:26]} 38. Qe4 {[%clk 00:01:07]} {[%emt 00:00:15]}
Kh8 {[%clk 00:00:33]} {[%emt 00:00:32]} 39. b5 {[%clk 00:00:32]} {[%emt
00:01:05]} Nd3 {[%clk 00:00:45]} {[%emt 00:00:17]} 40. Rf1 {[%clk 00:00:57]}
{[%emt 00:00:05]} Nc5 {[%clk 00:00:49]} {[%emt 00:00:26]} 41. Qg6 {[%clk
00:46:05]} {[%emt 00:05:21]} Qg7 {[%clk 00:35:46]} {[%emt 00:15:34]} 42. Qf5
{[%clk 00:41:56]} {[%emt 00:04:39]} Rxa2 {[%clk 00:22:45]} {[%emt 00:13:32]} 43.
Qc8 {[%clk 00:34:28]} {[%emt 00:07:57]} Rd2 {[%clk 00:11:03]} {[%emt 00:12:11]}
44. Ra1 {[%clk 00:26:46]} {[%emt 00:08:12]} Qe7 {[%clk 00:08:45]} {[%emt
00:02:49]} 45. Ra8 {[%clk 00:26:42]} {[%emt 00:00:34]} Kg7 {[%clk 00:09:12]}
{[%emt 00:00:03]} 46. b6 {[%clk 00:22:00]} {[%emt 00:05:11]} Rd7 {[%clk
00:08:07]} {[%emt 00:01:35]} 47. Be2 {[%clk 00:12:21]} {[%emt 00:10:09]} Ne6
{[%clk 00:07:35]} {[%emt 00:01:02]} 48. Qc2 {[%clk 00:11:30]} {[%emt 00:01:22]}
Rd8 {[%clk 00:04:57]} {[%emt 00:03:08]} 49. Ra7 {[%clk 00:11:08]} {[%emt
00:00:52]} Rd6 {[%clk 00:01:05]} {[%emt 00:04:22]} 50. Bc4 {[%clk 00:05:35]}
{[%emt 00:06:03]} Kh8 {[%clk 00:00:44]} {[%emt 00:00:51]} 51. Qb1 {[%clk
00:05:41]} {[%emt 00:00:23]} Nd8 {[%clk 00:00:36]} {[%emt 00:00:39]} 52. Ra8
{[%clk 00:05:34]} {[%emt 00:00:38]} Qg7 {[%clk 00:00:40]} {[%emt 00:00:26]} 53.
Ba2 {[%clk 00:02:03]} {[%emt 00:04:01]} Rd7 {[%clk 00:00:43]} {[%emt 00:00:27]}
54. Rc8 {[%clk 00:00:49]} {[%emt 00:01:44]} Qe7 {[%clk 00:00:41]} {[%emt
00:00:32]} 55. Qf5 {[%clk 00:00:37]} {[%emt 00:00:42]} Qd6 {[%clk 00:00:35]}
{[%emt 00:00:37]} 56. Bb1 {[%clk 00:00:32]} {[%emt 00:00:36]} Qe7 {[%clk
00:00:56]} {[%emt 00:00:08]} 57. Rc7 {[%clk 00:00:45]} {[%emt 00:00:17]} Rxc7
{[%clk 00:00:50]} {[%emt 00:00:37]} 58. bxc7 {[%clk 00:01:09]} {[%emt
00:00:05]} Qxc7 {[%clk 00:01:12]} {[%emt 00:00:08]} 59. Qxf6+ {[%clk 00:01:33]}
{[%emt 00:00:06]} Bg7 {[%clk 00:01:35]} {[%emt 00:00:07]} 60. Qg6 {[%clk
00:01:39]} {[%emt 00:00:24]} Kg8 {[%clk 00:00:37]} {[%emt 00:01:28]} 61. Qe8+
{[%clk 00:01:22]} {[%emt 00:00:47]} Bf8 {[%clk 00:00:58]} {[%emt 00:00:09]} 62.
Bxe5 {[%clk 00:00:45]} {[%emt 00:01:07]} Qf7 {[%clk 00:13:08]} {[%emt
00:03:19]} 63. Ba2 {[%clk 00:15:25]} {[%emt 00:00:50]} 1-0

[Event "Chess.com Isle of Man Masters"]
[Site "Villa Marina, Douglas, Isle of Man, United Kingdom"]
[Date "2018.10.22"]
[Round "3.32"]
[White "Sethuraman, S.P."]
[Black "Tarjan, James"]
[Result "1-0"]
[TimeControl "40 moves in 100 minutes, f.b. 20 moves in 50 minutes f.b. 15 minutes with a 30 second increment from move 0"]
[WhiteElo "2673"]
[BlackElo "2404"]

1. e4 {[%clk 01:35:10]} {[%emt 00:05:48]} e5 {[%clk 01:39:54]} {[%emt
00:01:07]} 2. Nf3 {[%clk 01:35:32]} {[%emt 00:00:07]} Nc6 {[%clk 01:39:44]}
{[%emt 00:00:41]} 3. Bc4 {[%clk 01:35:55]} {[%emt 00:00:06]} Nf6 {[%clk
01:39:19]} {[%emt 00:00:55]} 4. d3 {[%clk 01:36:19]} {[%emt 00:00:07]} Be7
{[%clk 01:38:47]} {[%emt 00:01:02]} 5. O-O {[%clk 01:36:41]} {[%emt 00:00:07]}
O-O {[%clk 01:38:25]} {[%emt 00:00:53]} 6. Re1 {[%clk 01:37:05]} {[%emt
00:00:05]} d6 {[%clk 01:37:55]} {[%emt 00:01:00]} 7. a4 {[%clk 01:37:30]}
{[%emt 00:00:06]} Na5 {[%clk 01:35:06]} {[%emt 00:03:18]} 8. Ba2 {[%clk
01:37:52]} {[%emt 00:00:08]} c5 {[%clk 01:34:58]} {[%emt 00:00:38]} 9. Na3
{[%clk 01:38:14]} {[%emt 00:00:08]} Nc6 {[%clk 01:33:49]} {[%emt 00:01:38]} 10.
c3 {[%clk 01:38:38]} {[%emt 00:00:07]} h6 {[%clk 01:30:50]} {[%emt 00:03:30]}
11. Bd2 {[%clk 01:38:37]} {[%emt 00:00:31]} a6 {[%clk 01:27:55]} {[%emt
00:03:25]} 12. h3 {[%clk 01:38:15]} {[%emt 00:00:51]} Rb8 {[%clk 01:26:57]}
{[%emt 00:01:28]} 13. Nc4 {[%clk 01:36:51]} {[%emt 00:01:54]} Be6 {[%clk
01:19:21]} {[%emt 00:08:07]} 14. b4 {[%clk 01:25:37]} {[%emt 00:11:43]} cxb4
{[%clk 01:13:06]} {[%emt 00:06:45]} 15. cxb4 {[%clk 01:26:01]} {[%emt
00:00:06]} b5 {[%clk 01:12:46]} {[%emt 00:00:50]} 16. axb5 {[%clk 01:26:20]}
{[%emt 00:00:11]} axb5 {[%clk 01:12:33]} {[%emt 00:00:43]} 17. Na5 {[%clk
01:26:42]} {[%emt 00:00:08]} Nxa5 {[%clk 01:07:31]} {[%emt 00:05:33]} 18. Bxe6
{[%clk 01:26:50]} {[%emt 00:00:20]} Nc6 {[%clk 01:02:59]} {[%emt 00:05:02]} 19.
Ba2 {[%clk 01:25:02]} {[%emt 00:02:18]} d5 {[%clk 00:54:04]} {[%emt 00:09:26]}
20. Qb3 {[%clk 01:24:26]} {[%emt 00:01:05]} dxe4 {[%clk 00:49:36]} {[%emt
00:04:58]} 21. dxe4 {[%clk 01:24:51]} {[%emt 00:00:05]} Bd6 {[%clk 00:40:11]}
{[%emt 00:09:55]} 22. Bc3 {[%clk 01:13:55]} {[%emt 00:11:26]} Nh5 {[%clk
00:37:26]} {[%emt 00:03:16]} 23. g3 {[%clk 01:06:49]} {[%emt 00:07:36]} Qf6
{[%clk 00:35:47]} {[%emt 00:02:09]} 24. Kg2 {[%clk 01:06:55]} {[%emt 00:00:24]}
Ra8 {[%clk 00:31:03]} {[%emt 00:05:15]} 25. Bb1 {[%clk 00:30:11]} {[%emt
00:37:14]} Rxa1 {[%clk 00:29:38]} {[%emt 00:01:55]} 26. Bxa1 {[%clk 00:30:27]}
{[%emt 00:00:13]} Ra8 {[%clk 00:28:58]} {[%emt 00:01:11]} 27. Bb2 {[%clk
00:21:58]} {[%emt 00:08:58]} Ra4 {[%clk 00:20:49]} {[%emt 00:08:39]} 28. Qd3
{[%emt 00:07:43]} Bf8 {[%clk 00:09:37]} {[%emt 00:04:14]} 29. Qxb5 {[%clk
00:17:46]} {[%emt 00:04:58]} Rxb4 {[%clk 00:09:27]} {[%emt 00:00:40]} 30. Qe2
{[%emt 00:01:22]} Qg6 {[%clk 00:06:20]} {[%emt 00:02:20]} 31. Kh2 {[%emt
00:00:55]} Qf6 {[%clk 00:05:47]} {[%emt 00:00:48]} 32. Rc1 {[%clk 00:16:07]}
{[%emt 00:02:24]} Rb3 {[%clk 00:04:03]} {[%emt 00:02:15]} 33. Rc3 {[%clk
00:08:22]} {[%emt 00:08:14]} Rxc3 {[%clk 00:04:18]} {[%emt 00:00:15]} 34. Bxc3
{[%clk 00:08:48]} {[%emt 00:00:04]} g6 {[%clk 00:02:32]} {[%emt 00:02:17]} 35.
Ba2 {[%clk 00:08:49]} {[%emt 00:00:28]} Bc5 {[%clk 00:01:51]} {[%emt 00:01:11]}
36. Kg2 {[%clk 00:06:44]} {[%emt 00:02:35]} Ng7 {[%emt 00:02:00]} 37. Qd2
{[%emt 00:03:14]} Nd4 {[%clk 00:00:35]} {[%emt 00:00:40]} 38. Bxd4 {[%clk
00:03:25]} {[%emt 00:00:41]} Bxd4 {[%clk 00:00:39]} {[%emt 00:00:26]} 39. Qxh6
{[%clk 00:03:48]} {[%emt 00:00:06]} Qa6 {[%emt 00:02:37]} 40. Bd5 {[%clk
00:00:45]} {[%emt 00:01:28]} Qf6 {[%emt 00:00:51]} 41. Qd2 {[%emt 00:05:12]}
Ne8 {[%emt 00:05:17]} 42. h4 {[%clk 00:45:48]} {[%emt 00:00:15]} Kg7 {[%clk
00:41:08]} {[%emt 00:05:21]} 43. Nh2 {[%clk 00:44:09]} {[%emt 00:02:09]} Nc7
{[%clk 00:32:11]} {[%emt 00:09:28]} 44. Ng4 {[%clk 00:42:56]} {[%emt 00:01:43]}
Qd6 {[%clk 00:31:31]} {[%emt 00:01:10]} 45. Qh6+ {[%clk 00:40:41]} {[%emt
00:02:44]} Kg8 {[%clk 00:31:55]} {[%emt 00:00:06]} 46. Bb3 {[%clk 00:39:41]}
{[%emt 00:01:30]} Qc6 {[%clk 00:27:28]} {[%emt 00:04:57]} 47. h5 {[%clk
00:37:37]} {[%emt 00:02:34]} Qxe4+ {[%clk 00:23:51]} {[%emt 00:04:07]} 48. Kh2
{[%clk 00:37:59]} {[%emt 00:00:07]} Qxg4 {[%clk 00:22:28]} {[%emt 00:01:54]} 49.
hxg6 {[%clk 00:38:05]} {[%emt 00:00:25]} 1-0